Cogmind - Beta 13 @@@ ROGUE MODE // 2024.04.02 @ 20:32:51 Player: SLUGGY Result: Self-destructed Performance ------------- Evolutions (1) 500 Regions Visited (2) 400 Robots Destroyed (34) 170 Value Destroyed (749) 749 Prototype IDs (3) 60 Alien Tech Used (0) 0 Bonus (0) 0 TOTAL SCORE: 1879 Bonus ------- None Cogmind --------- Core Integrity 120/400 Matter 83/300 Energy 100/100 System Corruption 0% Temperature Cool (0) Movement Treading (160) Location -9/Materials Parts ------- > --- POWER (1) -------- (None) > --- PROPULSION (3) --- Light Treads > --- UTILITY (3) ------ Small Storage Unit > --- WEAPON (2) ------- (None) > --- INVENTORY (8) ---- Aluminum Leg Aluminum Leg High-capacity Storage Unit Weight Redist. System Improved Light Armor Plating Shield Generator Peak State ------------ > --- POWER ------------ Light Nuclear Core > --- PROPULSION ------- Aluminum Leg Aluminum Leg Aluminum Leg > --- UTILITY ---------- Improved Heat Sink Small Storage Unit Improved Light Armor Plating > --- WEAPON ----------- High-powered Shotgun High-powered Shotgun > --- INVENTORY -------- Light Ion Engine Aluminum Leg Aluminum Leg High-capacity Storage Unit Sensor Array Improved Light Armor Plating Grenade Launcher Mining Laser [Rating: 20] Favorites ----------- Power Light Nuclear Core Engine Ion Engine Power Core Light Nuclear Core Propulsion Aluminum Leg Treads Light Treads Leg Aluminum Leg Utility Small Storage Unit Device Improved Heat Sink Storage Small Storage Unit Protection Improved Light Armor Plating Weapon High-powered Shotgun Energy Gun Medium Laser Ballistic Gun High-powered Shotgun Launcher Grenade Launcher Build | -11 -10 -9 ------- Run | Yrd Mat Mat Slots Evolved 2 | . . 2 Power . | . . . Propulsion 1 | . . 1 Utility 1 | . . 1 Weapon . | . . . Parts Attached 29 | 7 8 14 Power 2 | 1 1 . Engine 1 | 1 . . Core 1 | . 1 . Reactor . | . . . Propulsion 10 | 2 3 5 Treads 2 | . . 2 Leg 8 | 2 3 3 Wheel . | . . . Hover . | . . . Flight . | . . . Utility 7 | 2 1 4 Device 3 | 1 1 1 Storage 3 | 1 . 2 Processor . | . . . Hackware . | . . . Protection 1 | . . 1 Artifact . | . . . Weapon 10 | 2 3 5 Energy Gun 6 | 2 3 1 Energy Cannon . | . . . Ballistic Gun 3 | . . 3 Ballistic Cannon . | . . . Launcher 1 | . . 1 Special Weapon . | . . . Impact Weapon . | . . . Slashing Weapon . | . . . Piercing Weapon . | . . . Special Melee Weapon . | . . . Unidentified Prototypes 1 | . . 1 Corrupted Parts 1 | . 1 . System Corruption 1 | . 1 . Parts Lost 17 | . 7 10 Power 2 | . 1 1 Propulsion 6 | . 2 4 Utility 3 | . 1 2 Weapon 6 | . 3 3 Highest Loss Streak 9 | . 7 9 To Critical Strikes . | . . . Average Slot Usage (%) 94 | . 94 94 Engine 4 | . 11 . Core 6 | . 1 9 Leg 28 | . 26 30 Device 15 | . 12 17 Storage 12 | . 14 11 Protection 1 | . . 2 Energy Gun 12 | . 26 2 Ballistic Gun 10 | . . 18 Naked Turns . | . . . Heaviest Build 53 | 15 16 53 Greatest Support 30 | 20 20 30 Greatest Overweight (x) 4 | 1 2 4 Average Overweight (x) . | . . . Largest Inventory Capacity 20 | 8 8 20 Average Capacity 8 | 7 8 8 Most Carried 8 | 4 7 8 Average Carried 6 | 1 4 7 Final Capacity 8 | 8 8 8 Final Carried 7 | 2 7 6 Class Distribution -------------------- 53% | Scavenger-Mutant 46% | Mutant Dominant Class ---------------- Mutant | -10/Materials Scavenger-Mutant | -9/Materials Resources | -11 -10 -9 ----------- Run | Yrd Mat Mat Matter Collected 562 | 192 119 251 Remotely . | . . . Salvage Created 873 | 136 223 514 Parts 73 | 10 15 48 Haulers Intercepted . | . . . Recyclers Shooed 2 | . . 2 Parts Field Recycled . | . . . Retrieved Matter . | . . . Parts Self-Destructed . | . . . Prevented . | . . . Kills | -11 -10 -9 ------- Run | Yrd Mat Mat Combat Hostiles Destroyed 23 | . 6 17 Guns 21 | . 6 15 AOE 2 | . . 2 Classes Destroyed 7 | 2 2 3 Builder 2 | . . 2 Tunneler 4 | 2 . 2 Recycler 2 | 1 . 1 Watcher 3 | . . 3 Swarmer 10 | . 1 9 Grunt 10 | . 5 5 Sentry 3 | . . 3 Best Kill Streak 13 | 1 3 13 Combat Bots Only 6 | . 3 6 Max Kills in Single Turn 3 | 1 2 3 Gunslinging 1 | . 1 . Exploded 1 | . . 1 Melee . | . . . Uniques/NPCs Destroyed . | . . . Combat | -11 -10 -9 -------- Run | Yrd Mat Mat Hostile Shots Fired 186 | . 59 127 Missed 48 | . 12 36 Damage Taken 1766 | 26 578 1162 Core 451 | . 171 280 Absorbed by Shields . | . . . Core Remaining (%) 65 | 100 31 . Volleys Fired 82 | 6 20 56 Largest 2 | 2 2 2 Hottest 100 | 90 100 70 Shots Fired 135 | 12 31 92 Gun 126 | 12 31 83 Cannon . | . . . Launcher 9 | . . 9 Special . | . . . Kinetic 72 | . . 72 Thermal 29 | 6 23 . Explosive 9 | . . 9 Electromagnetic 25 | 6 8 11 Robot Hit Streak 11 | 8 5 11 Robot Miss Streak 14 | 1 3 14 Penetration Max . | . . . Secondary Targets 2 | . 1 1 Max Gunslinging Chain 1 | . 1 1 Shots Hit Robots 84 | 8 17 59 Core Hits 58 | 4 13 41 Critical Kills 1 | . . 1 Critical Parts Destroyed 1 | . . 1 Critical Strikes 5 | . 3 2 Burn 3 | . 3 . Destroy 2 | . . 2 Melee Attacks . | . . . Impact . | . . . Slashing . | . . . Piercing . | . . . Sneak Attacks . | . . . Combat Hostiles . | . . . Follow-up Attacks . | . . . Damage Inflicted 1811 | 135 229 1447 Guns 1353 | 99 224 1030 Cannons . | . . . Explosions 453 | 36 . 417 Melee . | . . . Ramming 5 | . 5 . Kinetic 907 | . . 907 Thermal 321 | 73 187 61 Explosive 356 | . . 356 Electromagnetic 222 | 62 37 123 Impact . | . . . Slashing . | . . . Piercing . | . . . Highest Corruption 1 | . 1 . Average Corruption 1 | . 1 . Corruption Purged . | . . . Corruption Blocked . | . . . Overload Shots . | . . . Overflow Damage . | . . . Projectiles . | . . . Explosions . | . . . Melee . | . . . Knockbacks . | . . . Impact . | . . . Kinetic . | . . . Secondary . | . . . Self-Inflicted Damage 116 | 26 . 90 Shots 4 | 1 . 3 Rammed . | . . . Targets Rammed 1 | . 1 . Kicked 1 | . 1 . Crushed . | . . . Highest Temperature 560 | 102 560 31 Average Temperature 201 | 41 266 18 Received Heat Transfer 561 | . 276 285 Effects 10 | . 10 . Energy Bleed 3 | . 3 . Interference 2 | . 2 . Short Circuit 1 | . 1 . Damage (major) 3 | . 3 . Damage (core) 1 | . 1 . Siege Activations . | . . . Robots Corrupted . | . . . Combat Hostiles . | . . . Parts Fried . | . . . Impact Corruptions . | . . . Robots Melted . | . . . Combat Hostiles . | . . . Parts Melted 1 | . 1 . Heat Transferred 1038 | 161 777 100 Parts Sabotaged . | . . . Parts Stolen . | . . . Parts Stripped . | . . . Power Chain Reactions 2 | 1 . 1 Alert | -11 -10 -9 ------- Run | Yrd Mat Mat Peak Influence 332 | 15 80 332 Initial 33 | . 9 33 Average 95 | 7 25 158 Maximum Alert Level 1 | . . 1 Low Security (%) 87 | 100 100 76 Level 1 12 | . . 23 Level 2 . | . . . Level 3 . | . . . Level 4 . | . . . Level 5 . | . . . High Security . | . . . Max Security . | . . . Squads Dispatched 2 | . 1 1 Investigation 2 | . 1 1 Extermination . | . . . Reinforcement . | . . . Assault . | . . . Garrison . | . . . Intercept . | . . . Searches Triggered . | . . . Construction Impeded . | . . . Haulers Reinforced . | . . . Active Scanning Responses . | . . . Cargo Convoy Interrupts . | . . . Stealth | -11 -10 -9 --------- Run | Yrd Mat Mat Distress Signals 2 | . 1 1 Communications Jammed . | . . . Distress Signals . | . . . Times Spotted 38 | . 8 30 Peak Tracking Total 9 | . 6 9 Tactical Retreats . | . . . Traps | -11 -10 -9 ------- Run | Yrd Mat Mat Traps Triggered 1 | . 1 . Indirectly . | . . . Trap Hack Attempts . | . . . Triggered . | . . . Disarmed . | . . . Reprogrammed . | . . . Reused . | . . . Traps Extracted . | . . . Installed . | . . . Triggered . | . . . Machines | -11 -10 -9 ---------- Run | Yrd Mat Mat Machines Disabled 5 | . . 5 Max in Single Turn 1 | . . 1 Machines Repaired . | . . . Machines Dismantled . | . . . Machines Sabotaged . | . . . Overloaded Fab Kills . | . . . Hacking | -11 -10 -9 --------- Run | Yrd Mat Mat Machines Accessed 6 | . 3 3 Terminals 6 | . 3 3 Fabricators . | . . . Repair Stations . | . . . Recycling Units . | . . . Scanalyzers . | . . . Garrison Access . | . . . Total Hacks 24 | . 13 11 Successful 10 | . 6 4 Failed 14 | . 7 7 Catastrophic 2 | . 1 1 Database Lockouts . | . . . Manual 15 | . 10 5 Terminals 24 | . 13 11 Fabricators . | . . . Repair Stations . | . . . Recycling Units . | . . . Scanalyzers . | . . . Garrison Access . | . . . Terminal Hacks 4 | . 3 1 Prototype ID Bank 1 | . . 1 Emergency Access Points 1 | . 1 . Locate Traps 1 | . 1 . Registered Components 1 | . 1 . Fabricator Hacks . | . . . Repair Station Hacks . | . . . Recycling Unit Hacks . | . . . Scanalyzer . | . . . Garrison Access Hacks . | . . . Unauthorized Hacks 6 | . 3 3 Terminals 6 | . 3 3 Botnet 6 | . 3 3 Fabricators . | . . . Repair Stations . | . . . Recycling Units . | . . . Scanalyzers . | . . . Garrison Access . | . . . Data Cores Recovered . | . . . Used . | . . . Hacking Detections 5 | . 3 2 Full Trace Events 4 | . 2 2 Feedback Events . | . . . Feedback Blocked . | . . . Robot Schematics Acquired . | . . . Robots Built . | . . . Authchips . | . . . Time . | . . . Total Robot Build Rating . | . . . Part Schematics Acquired . | . . . Parts Built . | . . . Authchips . | . . . Time . | . . . Total Part Build Rating . | . . . Parts Repaired . | . . . Time . | . . . Parts Recycled . | . . . Recycled Matter . | . . . Retrieved Matter . | . . . Retrieved Components . | . . . Parts Scanalyzed . | . . . Part Schematics Acquired . | . . . Parts Damaged . | . . . Bothacking | -11 -10 -9 ------------ Run | Yrd Mat Mat Used RIF Installer . | . . . Robots Hacked . | . . . Non-combat . | . . . Combat . | . . . Robot Hacks Applied . | . . . Relay Couplers Released . | . . . Fabnet Peak Effective % . | . . . Robots Rewired . | . . . Allies Hacked . | . . . Hacks Repelled . | . . . Allies | -11 -10 -9 -------- Run | Yrd Mat Mat Total Allies . | . . . Largest Group . | . . . Highest-Rated Group . | . . . Highest-Rated Ally . | . . . Total Orders . | . . . Ally Attacks . | . . . Total Damage . | . . . Kills . | . . . Allies Corrupted . | . . . Allies Melted . | . . . Intel | -11 -10 -9 ------- Run | Yrd Mat Mat Robot Analysis Total . | . . . Derelict Logs Recovered . | . . . Drone Launches . | . . . Drone Recoveries . | . . . Exploration | -11 -10 -9 ------------- Run | Yrd Mat Mat Turns Passed 1771 | 130 683 958 Spaces Moved 1154 | 95 489 570 Core 44 | 28 7 9 Treads 4 | . . 4 Legs 1106 | 67 482 557 Wheels . | . . . Hover . | . . . Flight . | . . . Fastest Speed 50 | 50 100 120 Average Speed 120 | 103 120 122 Slowest Speed 250 | 120 150 250 Overloaded Moves . | . . . Propulsion Burnouts . | . . . Robots Hopped . | . . . Cave-ins Triggered . | . . . Exploration Rate (%) 30 | 4 51 35 Regions Visited 2 Branch Regions . Pre-discovered Areas . | . . . Known Exits Taken . | . . . Unknown Exits Taken 2 | 1 1 . Scrap Searched . | . . . Spaces Dug . | . . . Terrain Destroyed 31 | . . 31 Melee . | . . . Projectile . | . . . AOE 31 | . . 31 Terrain Rammed . | . . . Walls Destroyed . | . . . Machines Disabled . | . . . Actions | -11 -10 -9 --------- Run | Yrd Mat Mat Total 1402 | 113 553 736 Wait 105 | . 25 80 Move 1152 | 94 488 570 Hop . | . . . Pick Up 24 | 6 11 7 Fast Attach 9 | 3 1 5 Attach 14 | 4 6 4 Detach . | . . . Swap 6 | . 1 5 Drop 9 | . . 9 Fire 82 | 6 20 56 Melee . | . . . Ram . | . . . Kick 1 | . 1 . Crush . | . . . Escape Stasis . | . . . Rewire . | . . . Trap . | . . . Miscellaneous . | . . . Route ------- -11/Scrapyard -10/Materials (discovered 3 exits: *Mat x2 / [*Min]) -9/Materials (discovered 1 exit: [*Mat]) History --------- Turn | Location | Event 6 | -11/Scrapyard | Discovered new exit (range 14) 131 | -11/Scrapyard | Entered Materials 303 | -10/Materials | Build established: Mutant 347 | -10/Materials | Discovered new exit (range 16) 514 | -10/Materials | Discovered new exit (range 7) 668 | -10/Materials | Discovered new exit (range 16) 705 | -10/Materials | Core integrity fell below 50% 766 | -10/Materials | Lost 7 parts (1p2n1u3w) 814 | -10/Materials | Entered another Materials area 814 | -9/Materials | Evolved 2 slots: Propulsion x1, Utility x1 1052 | -9/Materials | Build established: Scavenger-Mutant 1426 | -9/Materials | Discovered new exit (range 14) 1735 | -9/Materials | Core integrity fell below 50% 1762 | -9/Materials | Lost 9 parts (1p3n2u3w) 1772 | -9/Materials | Self-destructed Last Messages --------------- 01734_ Y-45 Defender destroyed. 01734_ W-16 Scout destroyed. 01734_ U-05 Engineer destroyed. 01741_ R-06 Scavenger destroyed. 01741_ T-07 Excavator destroyed. 01745_ The unstable cave ceiling collapses. 01745_ U-05 Engineer lays Concrete. 01747_ The unstable cave ceiling collapses. 01747_ U-05 Engineer lays Concrete. 01756_ Acquired Lgt. Treads. 01757_ U-05 Engineer lays Concrete. 01758_ Acquired 31 matter. 01758_ U-05 Engineer lays Concrete. 01764_ Acquired Lgt. Treads. 01765_ U-05 Engineer lays Concrete. 01768_ The unstable cave ceiling collapses. 01768_ U-05 Engineer lays Concrete. 01768_ Lgt. Treads destroyed. 01770_ T-07 Excavator destroyed. 01771_ Grenade Launcher severed. Map ----- +----------------------------------------------------+ | ?????????????????????????????????????????????????? | | ?????????????????????????????????????????????????? | | ????????????????????????#????????????????????????? | | ???????????????????????? ????????????????????????? | | ???????????????????????? ????????????????????????? | | ???????????????????????? ??? ????????????????????? | | ??????????????????"????# ?? ?????????????????#### | | ?????????????????? ???# "" ??????????######## | | ??????????????# """ ??# "Y "??????????# # < | | ??????????????# ??# "" ""?????????# "S # | | ?????????? #### # ### ""?????????# """ + | | ?????????? # #?????????# "" # | | ?????????? ######????# # | | ??????????? #????# [ # | | ???????????]]! #????######## | | ?????????? ]!! #???????????# | | ?????????? ]! = # #######?????# | | ???????? !!*u *! """ # ####### | | ???????? |!%[% !|%= "" # | | ???????? *% !* # """ + * | | ???????? """ " ! ! # "" # | | ????????????""" " " """ # ########+# | | ???????? """ "" """ ## ##??# | | ???????? * """ ## #???# | | ???????? =% l " ## #???# | | ????????? ###+## g |=! @ # ## #???# | | ????????????????# ## % ######## #???# | | ????????????????# ?# # #??????# #???# | | ????????????????#??##### ##??????# #???# | | ???????????????????????# #???????# #???# | | ??????????????????????? ???????# #???####### | | ??????????????????????? ? #?????????? | | ??????????????????????# r #?????????? | | ??????????????????????# ?????????? | | ??????????????????????# ######## ?????????? | | ??????????????????????###+###??????# ?????????? | | ????????????????????????? ?????????#####?????????? | | ?????????????????????????"???????????????????????? | | ?????????????????????????????????????????????????? | | ?????????????????????????????????????????????????? | | ?????????????????????????????????????????????????? | | ?????????????????????????????????????????????????? | | ?????????????????????????????????????????????????? | | ?????????????????????????????????????????????????? | | ?????????????????????????????????????????????????? | | ?????????????????????????????????????????????????? | | ?????????????????????????????????????????????????? | | ?????????????????????????????????????????????????? | | ?????????????????????????????????????????????????? | | ?????????????????????????????????????????????????? | +----------------------------------------------------+ Best States ------------- Heat Dissipation 42 Energy Generation 14 Energy Capacity 250 Matter Stores 300 Matter Capacity 300 Sight Range 16 Robot Scan Range 14 Terrain Scan Density 10 Armor Coverage 150 Evasion (%) 55 Recoil Reduction 1 Item Schematics ----------------- None Robot Schematics ------------------ None Fabricated ------------ Nothing Alien Tech Used ----------------- None Achievements -------------- Quantum Hacking Challenges ------------ None Game ------ Seed StormNeutronDriver Manual? 0 Play Time 00:20:44 Cumulative 15.2 hours Start 2024.04.02 @ 19:34:51 End 2024.04.02 @ 20:32:51 Sessions 3 Manual Loads 0 Difficulty Rogue Special Mode None Game No. 30 Rogue 30 Adventurer 0 Explorer 0 Win Type - Total 0 Types 0/0/0/0/0/0/0/0/0 Lore% 10 Gallery% 20 Achievement% 20 Wizard Run 0 Options --------- Layout 0 ASCII 0 Keyboard 1 Movement Arrows Keybinds 0 Fullscreen 1 Font 24/Smallcaps Map View 76x50 Zoom Use 0% Tactical HUD 1 Map Filters NONE Filters NONE Steam 1 RUN: 424cbf23-9443-4d90-b901-134b01c31ec9